bitfinex/quotes_ETHUSD_20250914
["timestamp","ask_amount","ask_price","bid_price","bid_amount"]
[1757867646393,20.54551816,4603.4,4603.3,0.001]
[1757867647606,24.3988293,4603.4,4603.3,0.001]
[1757867647770,25.7028293,4603.4,4603.3,0.001]
[1757867648898,25.91016126,4603.4,4603.3,0.001]
[1757867649796,26.47646395,4603.4,4603.3,0.001]
[1757867652487,3.85331114,4602.9,4602.6,0.001]
[1757867652685,7.1401332,4602.8,4602.6,0.001]
[1757867652999,5.78745786,4602.7,4602.6,0.001]
[1757867653200,6.34324341,4602.7,4602.6,0.001]
[1757867653404,7.24264341,4602.7,4602.6,0.001]
[1757867654182,6.78764341,4602.7,4602.6,0.001]
[1757867654516,8.97133103,4602.7,4602.6,0.001]
[1757867657115,8.97114674,4602.7,4602.6,0.001]
[1757867657314,8.51614674,4602.7,4602.6,0.001]
[1757867657532,11.41514674,4602.7,4602.6,0.001]
[1757867658388,9.68645912,4602.7,4602.6,0.001]
[1757867658599,6.05345912,4602.7,4602.6,0.001]
[1757867658806,9.21766422,4602.7,4602.6,0.4797]
[1757867659085,9.68645912,4602.7,4602.6,0.4797]
[1757867659643,11.31676409,4602.7,4602.6,0.001]
[1757867660352,9.35176409,4602.7,4602.6,0.001]
[1757867660538,12.98476409,4602.7,4602.6,0.001]
[1757867660916,13.27436409,4602.7,4602.6,0.001]
[1757867662417,13.72936409,4602.7,4602.6,0.001]
[1757867662744,17.58267523,4602.7,4602.6,0.001]
[1757867668259,18.88667523,4602.7,4602.6,0.001]
[1757867669438,18.99385134,4602.7,4602.6,0.001]
[1757867670756,19.57932114,4602.7,4602.6,0.001]
[1757867670961,19.57932114,4602.7,4602.0,1e-08]
[1757867670962,2.17292105,4602.1,4602.0,1e-08]
[1757867671135,9.65823219,4602.1,4602.0,1e-08]
[1757867671340,9.59875173,4602.1,4602.0,1e-08]
[1757867671742,9.6857526,4602.1,4602.0,1e-08]
[1757867676941,10.1485526,4602.1,4602.0,1e-08]
[1757867677265,11.380693,4602.1,4602.0,1e-08]
[1757867677851,11.686993,4602.1,4602.0,1e-08]
[1757867678641,10.917893,4602.1,4602.0,1e-08]
[1757867679763,9.6857526,4602.1,4602.0,1e-08]
[1757867680967,10.9369526,4602.1,4602.0,1e-08]
[1757867681469,10.4548526,4602.1,4602.0,1e-08]
[1757867681994,9.6857526,4602.1,4602.0,1e-08]
[1757867682882,10.1485526,4602.1,4602.0,1e-08]
[1757867683083,11.76602411,4602.1,4602.0,1e-08]
[1757867683316,12.07232411,4602.1,4602.0,1e-08]
[1757867685290,12.55442411,4602.1,4602.0,1e-08]
[1757867685814,15.88696642,4602.1,4602.0,1e-08]
[1757867687028,22.18856642,4602.1,4602.0,1e-08]
[1757867687209,21.72576642,4602.1,4602.0,1e-08]
[1757867687729,22.18856642,4602.1,4602.0,1e-08]
[1757867687926,22.18902456,4602.1,4602.0,1e-08]
[1757867688628,22.49532456,4602.1,4602.0,1e-08]
[1757867689654,22.97742456,4602.1,4602.0,1e-08]
[1757867689997,22.49532456,4602.1,4602.0,1e-08]
[1757867691440,22.49732456,4602.1,4602.0,1e-08]
[1757867691934,19.16478225,4602.1,4602.0,1e-08]
[1757867692146,22.49732456,4602.1,4602.0,1e-08]
[1757867695135,22.97762456,4602.1,4602.0,1e-08]
[1757867698114,18.85848225,4602.1,4602.0,1e-08]
[1757867698314,23.78802456,4602.1,4602.0,1e-08]
[1757867699436,24.28052456,4602.1,4602.0,1e-08]
[1757867700426,23.78802456,4602.1,4602.0,1e-08]
[1757867702878,24.28052456,4602.1,4602.0,1e-08]
[1757867703663,14.76368225,4602.1,4602.0,1e-08]
[1757867703860,16.77721074,4602.1,4602.0,1e-08]
[1757867704056,13.14621074,4602.1,4602.0,1e-08]
[1757867704262,16.77621074,4602.1,4602.0,1e-08]
[1757867705884,16.77656371,4602.1,4602.0,1e-08]
[1757867706473,9.68656371,4602.1,4602.0,1e-08]
[1757867706882,3.05656371,4602.1,4602.0,0.47410001]
[1757867707068,7.47392105,4602.1,4602.0,0.67639461]
[1757867707274,7.59611363,4602.1,4602.0,0.67639461]
[1757867707574,5.42319258,4602.1,4602.0,0.67639461]
[1757867707763,7.59611363,4602.1,4602.0,0.67639461]
[1757867708186,3.96611363,4602.1,4602.0,0.67639461]
[1757867708393,5.301,4602.1,4602.0,0.67639461]
[1757867708976,1.671,4602.1,4602.0,0.67639461]
[1757867709297,3.74,4602.1,4602.0,0.67639461]
[1757867709476,3.74,4602.1,4602.0,0.96144106]
[1757867709682,0.11,4602.1,4602.0,0.96144106]
[1757867709861,0.002,4602.1,4602.0,0.67639461]
[1757867710367,0.002,4602.1,4602.0,2.95736288]
[1757867710766,0.002,4602.1,4602.0,2.97909256]
[1757867714492,0.002,4602.1,4602.0,3.63130405]
[1757867719005,0.002,4602.1,4602.0,1.45705668]
[1757867719191,0.002,4602.1,4602.0,1.76993267]
[1757867719577,0.7301,4602.1,4602.0,0.853227]
[1757867719906,0.7301,4602.1,4602.0,0.20101551]
[1757867720306,0.4442,4602.1,4602.0,0.20101551]
[1757867720899,2.90302105,4602.1,4602.0,0.20101551]
[1757867721113,3.39552105,4602.1,4602.0,0.20101551]
[1757867722108,4.32605822,4602.1,4602.0,1e-08]
[1757867722907,4.41304585,4602.1,4602.0,1e-08]
[1757867725477,3.48250868,4602.1,4602.0,1e-08]
[1757867726818,3.39552105,4602.1,4602.0,1e-08]
[1757867727252,3.39552105,4602.1,4602.0,0.2012576]
[1757867728106,3.39552105,4602.1,4602.0,1e-08]
[1757867728411,3.39552105,4602.1,4602.0,0.20130509]
[1757867729017,4.33475664,4602.1,4602.0,1e-08]
[1757867730882,3.39552105,4602.1,4602.0,1e-08]
[1757867731218,3.39552105,4602.1,4602.0,0.20135254]
[1757867731721,3.59687359,4602.1,4602.0,1e-08]
[1757867731918,9.9294159,4602.1,4602.0,1e-08]
[1757867732090,10.05111778,4602.1,4602.0,1e-08]
[1757867732278,11.85005599,4602.1,4602.0,1e-08]
[1757867732482,12.31741457,4602.1,4602.0,1e-08]
[1757867735795,12.31736256,4602.1,4602.0,1e-08]
[1757867736630,13.62136256,4602.1,4602.0,1e-08]
[1757867737698,10.28882025,4602.1,4602.0,1e-08]
[1757867737900,12.61282025,4602.1,4602.0,1e-08]
[1757867738122,12.14546167,4602.1,4602.0,1e-08]
[1757867738403,12.14539587,4602.1,4602.0,1e-08]
[1757867738601,11.94260651,4602.1,4602.0,1e-08]
[1757867739128,12.14528473,4602.1,4602.0,1e-08]
[1757867739299,11.94260651,4602.1,4602.0,1e-08]
[1757867739700,12.14525843,4602.1,4602.0,1e-08]
[1757867740502,11.94260651,4602.1,4602.0,1e-08]
[1757867741319,15.27514882,4602.1,4602.0,1e-08]
[1757867741603,15.47778355,4602.1,4602.0,1e-08]
[1757867742127,2.096,4601.9,4601.3,1e-08]
[1757867742328,5.50579392,4601.4,4601.3,1e-08]
[1757867742636,12.56783,4601.4,4601.3,1e-08]
[1757867742842,13.59174299,4601.4,4601.3,1e-08]
[1757867744318,9.00990068,4601.4,4601.3,1e-08]
[1757867745114,8.8882646,4601.4,4601.3,1e-08]
[1757867745440,5.2602646,4601.4,4601.3,1e-08]
[1757867745647,8.8882646,4601.4,4601.3,1e-08]
[1757867746246,9.00986613,4601.4,4601.3,1e-08]
[1757867747120,8.8882646,4601.4,4601.3,1e-08]
[1757867747322,5.38188766,4601.4,4601.3,1e-08]
[1757867747646,9.00988766,4601.4,4601.3,1e-08]
[1757867748015,9.00992798,4601.4,4601.3,1e-08]
[1757867748755,10.25922798,4601.4,4601.3,1e-08]
[1757867749052,11.94902413,4601.4,4601.3,1e-08]
[1757867751975,2.38192798,4601.4,4601.3,1e-08]
[1757867752273,5.8882646,4601.4,4601.3,0.68783344]
[1757867752774,7.09,4601.5,4601.3,0.68783344]
[1757867752930,1.669,4601.8,4601.4,0.22352857]
[1757867753132,3.628,4601.7,4601.5,0.20179606]
[1757867753353,3.628,4601.7,4601.3,1e-08]
[1757867753354,3.628,4601.7,4601.6,0.68779606]
[1757867753780,5.80110993,4601.7,4601.6,0.68779606]
[1757867753985,5.80110993,4601.7,4601.6,0.20179606]
[1757867754476,3.628,4601.7,4601.6,0.20179606]
[1757867754633,3.628,4601.7,4601.6,0.67299606]
[1757867756543,1.777,4601.8,4601.6,0.67299606]
[1757867756742,1.777,4601.8,4601.7,0.67299606]
[1757867756975,5.405,4601.8,4601.7,0.67299606]
[1757867757483,7.57806271,4601.8,4601.7,0.20179606]
[1757867758380,5.405,4601.8,4601.7,0.20179606]
[1757867760586,1.777,4601.8,4601.7,0.68779606]
[1757867760738,5.404,4601.8,4601.7,0.68779606]
[1757867760946,5.404,4601.8,4601.7,0.20179606]
[1757867760947,7.57706271,4601.8,4601.7,0.20179606]
[1757867761440,7.57906271,4601.8,4601.7,0.20179606]
[1757867761640,5.406,4601.8,4601.7,0.20179606]
[1757867763385,0.002,4601.8,4601.7,3.10058063]
[1757867763550,0.002,4601.8,4601.7,4.02231172]
[1757867765259,0.002,4601.8,4601.7,7.02231172]
[1757867765465,0.002,4601.8,4601.7,7.00058063]
[1757867773112,0.002,4601.8,4601.7,7.08752061]
[1757867775732,0.002,4601.8,4601.7,5.80952061]
[1757867775896,0.002,4601.8,4601.7,9.43452061]
[1757867776279,0.002,4601.8,4601.7,10.22652061]
[1757867780631,0.2989,4601.8,4601.7,10.22652061]
[1757867780813,0.7605,4601.8,4601.7,10.22543743]
[1757867782951,0.002,4601.8,4601.7,10.22543743]
[1757867788255,1.2318,4601.8,4601.7,10.22543743]
[1757867789258,0.002,4601.8,4601.7,10.22543743]
[1757867792966,0.002,4601.8,4601.7,10.67723743]
[1757867795077,0.002,4601.8,4601.7,12.34523743]
[1757867797467,0.002,4601.8,4601.7,13.89247148]
[1757867797670,0.002,4601.8,4601.7,12.34523743]
[1757867801589,0.002,4602.3,4602.1,0.792]
[1757867801759,0.4518,4603.4,4603.0,2.96449619]
[1757867801961,0.4518,4603.4,4603.0,11.47893403]
[1757867802166,0.4518,4603.4,4603.0,11.45720907]
[1757867802367,0.4518,4603.4,4603.0,11.90900907]
[1757867804506,0.9062,4603.7,4603.0,11.90900907]
[1757867805077,0.4544,4603.7,4603.0,11.90900907]
[1757867805276,0.4538,4603.5,4603.0,11.90900907]
[1757867807077,0.76,4603.1,4603.0,8.28500907]
[1757867807275,1.2144,4603.1,4603.0,9.33076661]
[1757867807496,1.2144,4603.1,4603.0,12.95376661]
[1757867808401,1.2144,4603.1,4603.0,9.33076661]
[1757867808618,1.2144,4603.1,4603.0,8.53876661]
[1757867808800,1.2144,4603.1,4603.0,7.49300907]
[1757867809102,1.2144,4603.1,4603.0,11.11600907]
[1757867809501,1.2144,4603.1,4603.0,8.94351288]
[1757867809702,1.2144,4603.1,4603.0,5.49171288]
[1757867810006,1.2144,4603.1,4603.0,7.66420907]
[1757867811812,1.2144,4603.1,4603.0,7.77220907]
[1757867814281,1.2144,4603.1,4603.0,8.83199601]
[1757867814504,0.76,4603.1,4603.0,9.62399601]
[1757867814707,0.76,4603.1,4603.0,10.27599488]
[1757867816215,1.2236,4603.1,4603.0,10.27599488]
[1757867820084,0.76,4603.1,4603.0,10.27599488]
[1757867820314,0.002,4603.1,4603.0,10.27599488]
[1757867821114,0.742,4603.1,4603.0,10.27664192]
[1757867821411,1.2321,4603.1,4603.0,10.27664192]
[1757867821614,1.2321,4603.1,4603.0,10.2766132]
[1757867822812,0.742,4603.1,4603.0,10.2766132]
[1757867826896,0.002,4603.1,4603.0,10.2766132]
[1757867827412,0.742,4603.1,4603.0,10.2766132]
[1757867827611,0.4529,4603.1,4603.0,10.2766132]
[1757867827917,0.742,4603.1,4603.0,10.2766132]
[1757867831728,0.002,4603.1,4603.0,13.2766132]
[1757867834158,0.002,4603.1,4603.0,13.7391132]
[1757867835258,0.002,4603.1,4603.0,13.2766132]
[1757867838536,0.002,4603.1,4603.0,13.7391132]
[1757867839047,0.002,4603.5,4603.3,0.792]
[1757867839250,0.002,4603.5,4603.4,10.40480187]
[1757867839438,0.002,4603.5,4603.4,10.4910788]
[1757867840258,0.002,4603.5,4603.4,10.57799196]
[1757867846369,0.742,4603.5,4603.4,10.57799196]
[1757867846539,1.2321,4603.5,4603.4,10.57799196]
[1757867846740,1.2321,4603.5,4603.4,6.95699196]
[1757867846946,1.2321,4603.5,4603.4,10.57799196]
[1757867848357,0.002,4603.5,4603.4,10.57799196]
[1757867851431,0.4475,4603.5,4603.4,10.57799196]
[1757867851591,0.002,4603.5,4603.4,10.57799196]
[1757867855412,0.002,4603.8,4603.7,2.96416586]
[1757867855581,0.002,4603.8,4603.7,9.91521871]
[1757867855907,0.002,4603.8,4603.7,9.89349706]
[1757867856111,0.002,4603.8,4603.7,10.34099706]
[1757867856719,0.002,4604.0,4603.9,2.9640715]
[1757867856720,1e-08,4604.0,4603.9,2.9640715]
[1757867856922,1e-08,4604.0,4603.9,11.47412341]
[1757867857128,1e-08,4604.0,4603.9,11.9157027]
[1757867857576,1e-08,4604.0,4603.9,12.00260264]
[1757867857774,1e-08,4604.0,4603.9,11.53930264]
[1757867857973,1e-08,4604.0,4603.9,12.59908958]
[1757867859076,1e-08,4604.0,4603.9,13.06238958]
[1757867859598,1e-08,4604.0,4603.9,12.59908958]
[1757867859992,0.29450001,4604.0,4603.9,12.59908958]
[1757867860309,1.20310001,4604.0,4603.9,8.97908958]
[1757867860509,1.20310001,4604.0,4603.9,12.59908958]
[1757867861822,1.20310001,4604.0,4603.9,8.97908958]
[1757867862008,1.20310001,4604.0,4603.9,12.59808958]
[1757867862934,0.74000001,4604.0,4603.9,12.59808958]
[1757867863519,1.20310001,4604.0,4603.9,12.59808958]
[1757867864294,0.74000001,4604.0,4603.9,12.59808958]
[1757867865060,0.44550001,4604.0,4603.9,12.59808958]
[1757867866710,1e-08,4604.0,4603.9,12.59808958]
[1757867873137,1e-08,4604.0,4603.9,13.06138958]
[1757867873440,1e-08,4604.0,4603.9,14.6079457]
[1757867873647,1e-08,4604.0,4603.9,14.1446457]
[1757867873846,0.002,4604.5,4604.4,2.96383563]
[1757867874014,0.002,4604.5,4604.4,7.31820538]
[1757867874343,0.002,4604.5,4604.4,7.40448703]
[1757867874344,0.7555,4604.5,4604.4,7.40448703]
[1757867874502,1.223,4604.5,4604.4,7.49138112]
[1757867880535,1.223,4604.5,4604.4,7.49149156]
[1757867884412,1.223,4604.5,4604.4,3.35991748]
[1757867884739,1.223,4604.5,4604.4,6.97791748]
[1757867886626,1.223,4604.5,4604.4,9.97791748]
[1757867889142,1.223,4604.5,4604.4,9.18591748]
[1757867889440,1.223,4604.5,4604.4,9.18491748]
[1757867890243,1.223,4604.5,4604.4,9.97691748]
[1757867890540,1.223,4604.5,4604.4,11.19179974]
[1757867890743,0.764,4604.5,4604.4,10.99061198]
[1757867890941,0.4695,4604.5,4604.4,11.19216788]
[1757867891243,0.002,4604.5,4604.4,11.19216788]
[1757867891545,0.4329,4604.5,4604.4,11.19216788]
[1757867893726,0.4329,4604.5,4604.4,11.19214998]
[1757867895655,0.002,4604.5,4604.4,11.19214998]
[1757867896358,0.4329,4604.5,4604.4,11.19214998]
[1757867897225,0.002,4604.5,4604.4,11.19214998]
[1757867897667,0.4329,4604.5,4604.4,11.19214998]
[1757867898520,0.002,4604.5,4604.4,11.19214998]
[1757867898952,0.4329,4604.5,4604.4,11.19214998]
[1757867899367,0.002,4604.5,4604.4,11.19214998]
[1757867899858,0.002,4604.5,4604.4,12.73895998]
[1757867900063,1e-08,4604.6,4604.5,5.96378846]
[1757867900280,1e-08,4604.6,4604.5,9.80071999]
[1757867900583,1e-08,4604.6,4604.5,8.25351082]
[1757867901358,1e-08,4604.6,4604.5,8.34039792]
[1757867902555,1e-08,4604.8,4604.7,3.792]
[1757867902773,1e-08,4604.8,4604.7,9.28612747]
[1757867903079,1e-08,4604.8,4604.7,9.26441053]
[1757867903275,1e-08,4604.8,4604.7,11.52299177]
[1757867903480,1e-08,4604.8,4604.7,13.08343741]
[1757867905498,1e-08,4604.8,4604.7,11.53756488]
[1757867906051,1e-08,4604.8,4604.7,11.5371751]
[1757867911109,0.76590001,4604.8,4604.7,11.5361751]
[1757867912114,0.4952,4605.0,4604.9,2.17159981]
[1757867912310,0.4952,4605.0,4604.9,12.24858086]
[1757867912311,0.002,4605.0,4604.9,12.24858086]
[1757867912615,0.002,4605.0,4604.9,12.22686487]
[1757867912814,0.002,4605.0,4604.9,13.03106487]
[1757867914084,0.002,4605.0,4604.9,12.72206487]
[1757867914820,1.2611,4605.0,4604.9,9.10592521]
[1757867914987,1.2611,4605.0,4604.9,12.72192521]
[1757867917189,0.7953,4605.0,4604.9,12.72192521]
[1757867917389,0.7953,4605.0,4604.9,12.7219361]
[1757867917716,0.002,4605.0,4604.9,12.7219361]
[1757867917917,0.7953,4605.0,4604.9,12.7219361]
[1757867918098,1.2611,4605.0,4604.9,12.7219361]
[1757867918301,0.7953,4605.0,4604.9,12.7219361]
[1757867920189,0.3021,4605.0,4604.9,12.7219361]
[1757867922686,0.7953,4605.0,4604.9,12.7219361]
[1757867923823,0.3021,4605.0,4604.9,12.7219361]
[1757867925715,0.7953,4605.0,4604.9,12.7219361]
[1757867925914,0.3021,4605.0,4604.9,12.7219361]
[1757867926108,1.2611,4605.0,4604.9,12.7219361]
[1757867926708,0.7953,4605.0,4604.9,12.7219361]
[1757867928227,1.2611,4605.0,4604.9,12.7219361]
[1757867929330,0.3021,4605.0,4604.9,12.7219361]
[1757867930330,0.3021,4605.0,4604.9,14.26780863]
[1757867930531,0.7953,4605.0,4604.9,14.26780863]
[1757867930831,1.2611,4605.0,4604.9,14.26780863]
[1757867931029,0.7953,4605.0,4604.9,14.26780863]
[1757867931234,1.2611,4605.0,4604.9,14.26780863]
[1757867931732,0.002,4605.0,4604.9,14.57680863]
[1757867931925,0.3021,4605.0,4604.9,14.26780863]
[1757867932633,0.002,4605.0,4604.9,14.26780863]
[1757867933137,0.002,4605.0,4604.9,14.57680863]
[1757867936340,0.002,4605.0,4604.9,14.577244]
[1757867936736,0.002,4605.0,4604.9,15.050544]
[1757867936929,0.002,4605.0,4604.9,14.577244]
[1757867937124,0.002,4605.0,4604.9,14.268244]
[1757867937335,1.2293,4605.0,4604.9,14.268244]
[1757867937950,1.2293,4605.0,4604.9,10.652244]
[1757867938122,1.2293,4605.0,4604.9,15.059244]
[1757867940451,1.2293,4605.0,4604.9,11.444244]
[1757867940644,1.2293,4605.0,4604.9,13.48712716]
[1757867942016,1.2403,4605.0,4604.9,13.48712716]
[1757867942216,1.2403,4605.0,4604.9,11.94125463]
[1757867944639,1.2403,4605.0,4604.9,11.14925463]
[1757867945363,1.2403,4605.0,4604.9,2.36365482]
[1757867945564,1.36473,4605.0,4604.9,0.20145482]
[1757867948764,3.53628266,4605.0,4604.9,0.20145482]
[1757867949159,1.36473,4605.0,4604.9,0.20145482]
[1757867950258,1.36473,4605.0,4604.9,0.20091815]
[1757867950846,1.36473,4605.0,4604.9,0.20086981]
[1757867955375,1.2403,4605.0,4604.9,0.20086981]
[1757867956173,0.002,4605.0,4604.9,0.20086981]
[1757867956342,0.002,4605.0,4604.9,5.98646962]
[1757867956744,0.002,4605.0,4604.9,3.81486981]
[1757867956939,0.3044,4605.0,4604.9,3.81486981]
[1757867957176,0.7814,4605.0,4604.9,3.81486981]
[1757867957472,1.2254,4605.0,4604.9,3.81486981]
[1757867957636,1.2254,4605.0,4604.9,3.8365858]
[1757867959472,1.2254,4605.0,4604.9,3.81486981]
[1757867959774,1.2254,4605.0,4604.9,0.20086981]
[1757867959976,1.2254,4605.0,4604.9,3.81486981]
[1757867961864,1.2254,4605.0,4604.9,0.20086981]
[1757867963774,0.7814,4605.0,4604.9,0.20086981]
[1757867964592,1.2254,4605.0,4604.9,0.20086981]
[1757867968568,0.7814,4605.0,4604.9,0.20086981]
[1757867969269,0.002,4605.0,4604.9,0.51276981]
[1757867969665,0.002,4605.0,4604.9,0.20086981]
[1757867970303,0.002,4605.0,4604.9,0.50526981]
[1757867970500,0.002,4605.0,4604.9,2.67686962]
[1757867970669,0.002,4605.0,4604.9,3.14836962]
[1757867970872,0.002,4605.0,4604.9,2.67686962]
[1757867971373,0.002,4605.0,4604.9,0.50526981]
[1757867971674,0.002,4605.0,4604.9,2.67686962]
[1757867972276,0.002,4605.0,4604.9,0.50526981]
[1757867974501,0.7747,4605.0,4604.9,0.20086981]
[1757867974706,1.23,4605.0,4604.9,0.20086981]
[1757867975687,1.23,4605.0,4604.9,3.81486981]
[1757867976906,1.23,4605.0,4604.9,3.81538613]
[1757867981116,0.7747,4605.0,4604.9,3.81538613]
[1757867981321,1.23,4605.0,4604.9,3.81538613]
[1757867984400,0.7747,4605.0,4604.9,3.81538383]
[1757867984728,0.002,4605.0,4604.9,4.11978383]
[1757867985037,0.002,4605.0,4604.9,6.29138364]
[1757867985734,0.002,4605.0,4604.9,4.11978383]
[1757867986524,0.002,4605.0,4604.9,6.29138364]
[1757867986727,0.002,4605.0,4604.9,4.11978383]
[1757867987144,0.002,4605.0,4604.9,6.29138364]
[1757867987711,0.002,4605.0,4604.9,4.11978383]
[1757867989740,0.002,4605.0,4604.9,6.29138364]
[1757867990241,0.002,4605.0,4604.9,4.11978383]
[1757867990925,0.002,4605.0,4604.9,4.11976057]
[1757867992538,0.002,4605.0,4604.9,6.29136038]
[1757867992852,0.002,4605.0,4604.9,4.11976057]
[1757867993038,0.002,4605.0,4604.9,3.81536057]
[1757867994334,0.002,4605.0,4604.9,5.98696038]
[1757867994535,0.002,4605.0,4604.9,6.29846038]
[1757867995119,0.002,4605.0,4604.9,4.12686057]
[1757867995411,0.002,4605.0,4604.9,4.12680401]
[1757867997614,0.002,4605.0,4604.9,6.29840382]
[1757867998349,0.002,4605.0,4604.9,4.12680401]
[1757867998648,0.002,4605.0,4604.9,6.29840382]
[1757867999851,0.002,4605.0,4604.9,4.12680401]
[1757868000429,0.002,4605.0,4604.9,6.29840382]
[1757868001149,0.002,4605.0,4604.9,4.12680401]
[1757868001751,0.002,4605.0,4604.9,6.29840382]
[1757868002329,0.002,4605.0,4604.9,4.12680401]
[1757868002527,1.2591,4605.0,4604.9,0.20130401]
[1757868002732,1.38541,4605.0,4604.9,0.20130401]
[1757868002925,0.002,4605.0,4604.9,0.20130401]
[1757868003157,0.002,4605.0,4604.9,3.81430401]
[1757868006236,1.2591,4605.0,4604.9,3.81430401]
[1757868006562,3.43065266,4605.0,4604.9,0.20130401]
[1757868008860,1.2591,4605.0,4604.9,0.20130401]
[1757868009174,3.99125683,4605.0,4604.9,0.20130401]
[1757868013365,3.99125683,4605.0,4604.9,0.20120305]
[1757868013750,3.99125683,4605.0,4604.9,0.20120295]
[1757868015576,4.11327201,4605.0,4604.9,0.20120295]
[1757868021178,2.17159981,4604.9,4604.8,0.001]
[1757868021495,3.54533321,4604.9,4604.8,0.20201757]
[1757868021698,4.80243321,4604.9,4604.8,0.20201757]
[1757868024494,8.41443321,4604.9,4604.8,0.20201757]
[1757868024792,8.41443321,4604.9,4604.8,0.001]
[1757868027897,8.41443321,4604.9,4604.8,0.20197181]
[1757868028795,8.41443321,4604.9,4604.8,0.20198237]
[1757868030415,7.15733321,4604.9,4604.8,0.49478237]
[1757868030621,5.78359981,4604.9,4604.8,0.49478237]
[1757868030909,5.78359981,4604.9,4604.8,0.20198237]
[1757868031308,5.78359981,4604.9,4604.8,0.49478237]
[1757868033383,5.78359981,4604.9,4604.8,0.20198237]
[1757868036930,5.78359981,4604.9,4604.8,0.49478237]
[1757868039031,5.78359981,4604.9,4604.8,0.20198237]
[1757868040120,5.9055908,4604.9,4604.8,0.20198237]
[1757868040499,5.78359981,4604.9,4604.8,0.20198237]
[1757868041004,5.78359981,4604.9,4604.8,0.49478237]
[1757868041299,2.29360361,4604.9,4604.8,0.49478237]
[1757868041612,3.612,4604.9,4604.8,0.49478237]
[1757868042234,3.612,4604.9,4604.8,0.92678237]
[1757868042406,3.612,4604.9,4604.8,0.49478237]
[1757868042734,3.612,4604.9,4604.8,0.92678237]
[1757868042934,0.12400334,4605.0,4604.8,0.92678237]
[1757868043156,0.002,4605.0,4604.9,1.11738237]
[1757868043549,0.002,4605.0,4604.9,1.41018237]
[1757868043851,0.002,4605.0,4604.9,1.41039288]
[1757868044853,0.002,4605.0,4604.9,0.92599288]
[1757868047570,0.002,4605.0,4604.9,0.49399288]
[1757868047752,0.7716,4605.0,4604.9,0.20119288]
[1757868047932,1.2233,4605.0,4604.9,0.20119288]
[1757868049259,4.3826,4605.0,4604.9,0.20119288]
[1757868053539,4.8456,4605.0,4604.9,0.20119288]
[1757868053779,7.01715266,4605.0,4604.9,0.20119288]
[1757868053952,7.93640916,4605.0,4604.9,0.20119288]
[1757868055286,4.8456,4605.0,4604.9,0.20119288]
[1757868055454,4.3826,4605.0,4604.9,0.20119288]
[1757868055655,3.613,4605.0,4604.9,0.20119288]
[1757868056165,3.613,4605.0,4604.9,0.51649288]
[1757868057786,3.613,4605.0,4604.9,0.20119288]
[1757868057981,3.9087,4605.0,4604.9,0.20119288]
[1757868058212,4.8355,4605.0,4604.9,0.20119288]
[1757868059411,7.20717797,4605.0,4604.9,0.20119288]
[1757868062076,7.32912831,4605.0,4604.9,0.20119288]
[1757868068392,6.88492831,4605.0,4604.9,0.20119288]
[1757868068594,6.00347797,4605.0,4604.9,0.20119288]
[1757868070104,6.43102566,4605.0,4604.9,0.20119288]
[1757868070517,7.33892566,4605.0,4604.9,0.20119288]
[1757868072733,6.89472566,4605.0,4604.9,0.20119288]
[1757868072937,7.21697797,4605.0,4604.9,0.20119288]
[1757868073145,7.33892547,4605.0,4604.9,0.20119288]
[1757868073811,3.7349475,4605.0,4604.9,0.51689288]
[1757868074155,3.612,4605.0,4604.9,0.95649288]
[1757868074559,3.612,4605.0,4604.9,0.51689288]
[1757868075348,3.612,4605.0,4604.9,0.3157]
[1757868075518,3.612,4605.0,4604.9,0.51689781]
[1757868075714,3.612,4605.0,4604.9,0.20119781]
[1757868076656,6.99705266,4605.0,4604.9,0.20119781]
[1757868076809,8.08100401,4605.0,4604.9,0.20119781]
[1757868083375,8.20298924,4605.0,4604.9,0.20119781]
[1757868083590,8.08100401,4605.0,4604.9,0.20119781]
[1757868084870,8.20299522,4605.0,4604.9,0.20119781]
[1757868086166,8.2030063,4605.0,4604.9,0.20119781]
[1757868088291,7.63680401,4605.0,4604.9,0.20119781]
[1757868088452,8.20303002,4605.0,4604.9,0.20119781]
[1757868091989,7.29513002,4605.0,4604.9,0.20119781]
[1757868092188,7.29513002,4605.0,4604.8,0.001]
[1757868092189,2.27959981,4604.9,4604.8,0.001]
[1757868092483,2.27959981,4604.9,4604.8,0.20235801]
[1757868092852,2.27959981,4604.9,4604.8,0.50225801]
[1757868096255,3.29701061,4604.9,4604.8,0.50225801]
[1757868096454,3.29701061,4604.9,4604.8,0.20235801]
[1757868099590,4.51101061,4604.9,4604.8,0.20235801]
[1757868099814,4.63308707,4604.9,4604.8,0.20235801]
[1757868105924,4.19108707,4604.9,4604.8,0.20235801]
[1757868106783,4.63308707,4604.9,4604.8,0.20235801]
[1757868107704,4.15398707,4604.9,4604.8,0.20235801]
[1757868107905,3.41908707,4604.9,4604.8,0.50225801]
[1757868108514,3.41908707,4604.9,4604.8,0.20235801]
[1757868109319,3.29701061,4604.9,4604.8,0.20240221]
[1757868110232,4.06901061,4604.9,4604.8,0.20240221]
[1757868110527,4.06901061,4604.9,4604.8,0.001]
[1757868110933,4.19108896,4604.9,4604.8,0.001]
[1757868111125,4.06901061,4604.9,4604.8,0.20240714]
[1757868111508,4.06901061,4604.9,4604.8,0.001]
[1757868111708,4.51101061,4604.9,4604.8,0.001]
[1757868112333,4.06901061,4604.9,4604.8,0.001]
[1757868113534,3.29701061,4604.9,4604.8,0.3108]
[1757868113735,2.27959981,4604.9,4604.8,0.3108]
[1757868114138,2.56519981,4604.9,4604.8,0.001]
[1757868114345,3.50129981,4604.9,4604.8,0.001]
[1757868115247,3.50129981,4604.9,4604.8,0.20239999]
[1757868115422,3.50329981,4604.9,4604.8,0.20239999]
[1757868116122,3.50329981,4604.9,4604.8,0.001]
[1757868116433,4.72095306,4604.9,4604.8,0.20239875]
[1757868116972,8.32995306,4604.9,4604.8,0.20239875]
[1757868121910,8.32895306,4604.9,4604.8,0.20239875]
[1757868122450,7.39285306,4604.9,4604.8,0.20239875]
[1757868123442,7.89275306,4604.9,4604.8,0.20239875]
[1757868123829,11.56680851,4604.9,4604.8,0.20239875]